[Event "Titled Tuesday Blitz May 2 Early 2023"]
[White "Yu, Yangyi"]
[Black "Shimanov, Aleksandr"]
[WhiteFideId "8603820"]
[BlackFideId "4198603"]
[WhiteElo "2783"]
[BlackElo "2631"]
[Result "0-1"]
[Round "09"]
[TimeControl "180+2"]
[Date "2023.05.02"]
[WhiteClock "0:00:02"]
[BlackClock "0:00:05"]

1. Nf3 {[%clk 0:03:00]}  d5 {[%clk 0:02:55]} 2. g3 {[%clk 0:03:00]}  Nd7 {[%clk 0:02:53]} 3. d4 {[%clk 0:03:00]}  Ngf6 {[%clk 0:02:53]} 4. Bg2 {[%clk 0:02:59]}  e6 {[%clk 0:02:53]} 5. O-O {[%clk 0:02:57]}  Be7 {[%clk 0:02:53]} 6. c4 {[%clk 0:02:57]}  O-O {[%clk 0:02:49]} 7. Qc2 {[%clk 0:02:53]}  c6 {[%clk 0:02:49]} 8. b3 {[%clk 0:02:51]}  b6 {[%clk 0:02:48]} 9. Bb2 {[%clk 0:02:46]}  Bb7 {[%clk 0:02:45]} 10. Nc3 {[%clk 0:02:45]}  Ba6 {[%clk 0:02:30]} 11. Rfd1 {[%clk 0:02:33]}  Rc8 {[%clk 0:02:27]} 12. e4 {[%clk 0:02:22]}  dxc4 {[%clk 0:02:26]} 13. Nd2 {[%clk 0:02:21]}  b5 {[%clk 0:02:20]} 14. bxc4 {[%clk 0:02:18]}  bxc4 {[%clk 0:02:21]} 15. Nf1 {[%clk 0:02:16]}  Nb6 {[%clk 0:02:15]} 16. Ne3 {[%clk 0:02:15]}  h6 {[%clk 0:02:12]} 17. a4 {[%clk 0:02:15]}  Bb4 {[%clk 0:02:04]} 18. Na2 {[%clk 0:02:07]}  Ba5 {[%clk 0:01:53]} 19. Bc3 {[%clk 0:02:05]}  Bxc3 {[%clk 0:01:52]} 20. Nxc3 {[%clk 0:01:59]}  Qe7 {[%clk 0:01:26]} 21. Bf1 {[%clk 0:01:53]}  Rfd8 {[%clk 0:01:22]} 22. a5 {[%clk 0:01:52]}  Nbd7 {[%clk 0:01:22]} 23. Bxc4 {[%clk 0:01:44]}  Bxc4 {[%clk 0:01:18]} 24. Nxc4 {[%clk 0:01:45]}  e5 {[%clk 0:01:19]} 25. Qe2 {[%clk 0:01:39]}  exd4 {[%clk 0:01:14]} 26. Rxd4 {[%clk 0:01:39]}  Ne5 {[%clk 0:01:12]} 27. Rxd8+ {[%clk 0:00:54]}  Rxd8 {[%clk 0:01:13]} 28. Nxe5 {[%clk 0:00:54]}  Qxe5 {[%clk 0:01:13]} 29. Ra3 {[%clk 0:00:44]}  Qc5 {[%clk 0:01:08]} 30. Rb3 {[%clk 0:00:37]}  Qxa5 {[%clk 0:01:04]} 31. Qc4 {[%clk 0:00:35]}  Ng4 {[%clk 0:00:52]} 32. Qe2 {[%clk 0:00:22]}  Ne5 {[%clk 0:00:46]} 33. Kg2 {[%clk 0:00:20]}  Qc5 {[%clk 0:00:43]} 34. Nb1 {[%clk 0:00:12]}  a5 {[%clk 0:00:42]} 35. Rc3 {[%clk 0:00:09]}  Qd4 {[%clk 0:00:43]} 36. Rc2 {[%clk 0:00:08]}  Re8 {[%clk 0:00:36]} 37. Nd2 {[%clk 0:00:04]}  a4 {[%clk 0:00:35]} 38. Nf3 {[%clk 0:00:04]}  Nxf3 {[%clk 0:00:35]} 39. Qxf3 {[%clk 0:00:05]}  Ra8 {[%clk 0:00:22]} 40. Rxc6 {[%clk 0:00:03]}  a3 {[%clk 0:00:21]} 41. Rc7 {[%clk 0:00:01]}  a2 {[%clk 0:00:17]} 42. e5 {[%clk 0:00:02]}  Rf8 {[%clk 0:00:07]} 43. e6 {[%clk 0:00:02]}  fxe6 {[%clk 0:00:05]} 0-1


[Site "https://www.chess.com"]

[Event "Titled Tuesday Blitz May 2 Early 2023"]
[White "Terry, Renato"]
[Black "Andreikin, Dmitry"]
[WhiteFideId "3803457"]
[BlackFideId "4158814"]
[WhiteElo "2575"]
[BlackElo "2736"]
[Result "0-1"]
[Round "09"]
[TimeControl "180+2"]
[Date "2023.05.02"]
[WhiteClock "0:00:03"]
[BlackClock "0:00:05"]

1. e4 {[%clk 0:02:59]}  c5 {[%clk 0:02:53]} 2. Nf3 {[%clk 0:02:59]}  Nc6 {[%clk 0:02:53]} 3. Nc3 {[%clk 0:02:56]}  d6 {[%clk 0:02:49]} 4. Bb5 {[%clk 0:02:52]}  e5 {[%clk 0:02:46]} 5. O-O {[%clk 0:02:49]}  Nf6 {[%clk 0:02:46]} 6. d3 {[%clk 0:02:49]}  Be7 {[%clk 0:02:46]} 7. Nd2 {[%clk 0:02:40]}  O-O {[%clk 0:02:45]} 8. Bxc6 {[%clk 0:02:40]}  bxc6 {[%clk 0:02:45]} 9. Nc4 {[%clk 0:02:41]}  Bg4 {[%clk 0:02:39]} 10. Qe1 {[%clk 0:02:36]}  Be6 {[%clk 0:02:32]} 11. b3 {[%clk 0:02:23]}  Re8 {[%clk 0:02:32]} 12. h3 {[%clk 0:02:13]}  Nd7 {[%clk 0:02:08]} 13. Ne3 {[%clk 0:02:04]}  Bf6 {[%clk 0:02:03]} 14. Qe2 {[%clk 0:01:56]}  g6 {[%clk 0:02:02]} 15. Ng4 {[%clk 0:01:44]}  Bg7 {[%clk 0:02:00]} 16. Nh6+ {[%clk 0:01:45]}  Kh8 {[%clk 0:01:58]} 17. Bd2 {[%clk 0:01:43]}  Qh4 {[%clk 0:01:50]} 18. Ng4 {[%clk 0:01:43]}  f5 {[%clk 0:01:51]} 19. Nh2 {[%clk 0:01:43]}  f4 {[%clk 0:01:49]} 20. f3 {[%clk 0:01:36]}  Nf6 {[%clk 0:01:41]} 21. Qf2 {[%clk 0:01:33]}  Qg5 {[%clk 0:01:38]} 22. Ne2 {[%clk 0:01:09]}  Bxh3 {[%clk 0:01:32]} 23. Kh1 {[%clk 0:01:10]}  Bd7 {[%clk 0:01:24]} 24. Rg1 {[%clk 0:01:10]}  Rf8 {[%clk 0:01:01]} 25. Rad1 {[%clk 0:01:01]}  Nh5 {[%clk 0:00:57]} 26. g4 {[%clk 0:01:01]}  fxg3 {[%clk 0:00:57]} 27. Nxg3 {[%clk 0:01:01]}  Qh4 {[%clk 0:00:53]} 28. Qe1 {[%clk 0:00:59]}  Nf4 {[%clk 0:00:49]} 29. Ba5 {[%clk 0:00:56]}  Rf6 {[%clk 0:00:43]} 30. Ne2 {[%clk 0:00:53]}  Qxe1 {[%clk 0:00:38]} 31. Rdxe1 {[%clk 0:00:53]}  Ne6 {[%clk 0:00:39]} 32. c3 {[%clk 0:00:45]}  Bh6 {[%clk 0:00:37]} 33. Ng4 {[%clk 0:00:41]}  Rxf3 {[%clk 0:00:38]} 34. Kg2 {[%clk 0:00:41]}  Raf8 {[%clk 0:00:22]} 35. Nxh6 {[%clk 0:00:38]}  Rf2+ {[%clk 0:00:19]} 36. Kh1 {[%clk 0:00:37]}  R8f3 {[%clk 0:00:20]} 37. Ng3 {[%clk 0:00:22]}  Nf4 {[%clk 0:00:20]} 38. Bc7 {[%clk 0:00:20]}  Kg7 {[%clk 0:00:17]} 39. Bxd6 {[%clk 0:00:09]}  Kxh6 {[%clk 0:00:16]} 40. Bxc5 {[%clk 0:00:10]}  Rxa2 {[%clk 0:00:14]} 41. Be3 {[%clk 0:00:09]}  Bh3 {[%clk 0:00:12]} 42. d4 {[%clk 0:00:06]}  Kg7 {[%clk 0:00:09]} 43. Bxf4 {[%clk 0:00:07]}  exf4 {[%clk 0:00:08]} 44. Re2 {[%clk 0:00:07]}  Rxe2 {[%clk 0:00:06]} 45. Nxe2 {[%clk 0:00:08]}  Kf6 {[%clk 0:00:06]} 46. Re1 {[%clk 0:00:07]}  g5 {[%clk 0:00:06]} 47. Ng1 {[%clk 0:00:07]}  Re3 {[%clk 0:00:04]} 48. Rxe3 {[%clk 0:00:04]}  fxe3 {[%clk 0:00:05]} 49. Kh2 {[%clk 0:00:05]}  Bg4 {[%clk 0:00:05]} 50. Kg3 {[%clk 0:00:05]}  h5 {[%clk 0:00:05]} 51. c4 {[%clk 0:00:04]}  a5 {[%clk 0:00:04]} 52. c5 {[%clk 0:00:03]}  Ke6 {[%clk 0:00:04]} 53. Kg2 {[%clk 0:00:03]}  h4 {[%clk 0:00:04]} 54. Kh2 {[%clk 0:00:03]}  e2 {[%clk 0:00:05]} 0-1


[Site "https://www.chess.com"]

[Event "Titled Tuesday Blitz May 2 Early 2023"]
[White "Van Foreest, Jorden"]
[Black "Vidit, Santosh Gujrathi"]
[WhiteFideId "1039784"]
[BlackFideId "5029465"]
[WhiteElo "2633"]
[BlackElo "2651"]
[Result "0-1"]
[Round "09"]
[TimeControl "180+2"]
[Date "2023.05.02"]
[WhiteClock "0:00:05"]
[BlackClock "0:00:04"]

1. e4 {[%clk 0:03:00]}  e5 {[%clk 0:02:59]} 2. Nf3 {[%clk 0:03:01]}  Nc6 {[%clk 0:02:59]} 3. Bc4 {[%clk 0:03:01]}  Bc5 {[%clk 0:02:59]} 4. d3 {[%clk 0:02:59]}  Nf6 {[%clk 0:02:59]} 5. Nc3 {[%clk 0:02:59]}  a6 {[%clk 0:02:56]} 6. Be3 {[%clk 0:02:55]}  d6 {[%clk 0:02:53]} 7. Bxc5 {[%clk 0:02:52]}  dxc5 {[%clk 0:02:53]} 8. Nd5 {[%clk 0:02:49]}  b5 {[%clk 0:02:35]} 9. Nxf6+ {[%clk 0:02:46]}  Qxf6 {[%clk 0:02:36]} 10. Bd5 {[%clk 0:02:47]}  Bd7 {[%clk 0:02:34]} 11. a4 {[%clk 0:02:46]}  O-O {[%clk 0:02:31]} 12. O-O {[%clk 0:02:44]}  Rab8 {[%clk 0:02:24]} 13. axb5 {[%clk 0:02:44]}  axb5 {[%clk 0:02:25]} 14. Qd2 {[%clk 0:02:44]}  Ne7 {[%clk 0:02:10]} 15. Qe3 {[%clk 0:02:39]}  Qd6 {[%clk 0:02:08]} 16. Bb3 {[%clk 0:02:35]}  h6 {[%clk 0:01:52]} 17. c3 {[%clk 0:02:23]}  Ra8 {[%clk 0:01:42]} 18. h3 {[%clk 0:02:20]}  Ng6 {[%clk 0:01:34]} 19. Bc2 {[%clk 0:02:11]}  Rfe8 {[%clk 0:01:16]} 20. Kh2 {[%clk 0:02:10]}  Nf4 {[%clk 0:01:06]} 21. Rfd1 {[%clk 0:02:06]}  Qg6 {[%clk 0:01:00]} 22. Ne1 {[%clk 0:02:03]}  Qd6 {[%clk 0:00:52]} 23. h4 {[%clk 0:01:51]}  Bg4 {[%clk 0:00:49]} 24. f3 {[%clk 0:01:46]}  Be6 {[%clk 0:00:49]} 25. g3 {[%clk 0:01:47]}  Nh5 {[%clk 0:00:48]} 26. Ng2 {[%clk 0:01:41]}  b4 {[%clk 0:00:48]} 27. c4 {[%clk 0:01:27]}  Reb8 {[%clk 0:00:39]} 28. Bb3 {[%clk 0:01:25]}  Nf6 {[%clk 0:00:37]} 29. Qe2 {[%clk 0:01:18]}  Rd8 {[%clk 0:00:35]} 30. Bc2 {[%clk 0:01:13]}  Qd4 {[%clk 0:00:35]} 31. Rab1 {[%clk 0:01:07]}  g6 {[%clk 0:00:18]} 32. Qe3 {[%clk 0:01:08]}  c6 {[%clk 0:00:18]} 33. Qxh6 {[%clk 0:01:07]}  Qf2 {[%clk 0:00:17]} 34. Qd2 {[%clk 0:01:06]}  Qxf3 {[%clk 0:00:17]} 35. Qe1 {[%clk 0:00:54]}  b3 {[%clk 0:00:16]} 36. Bxb3 {[%clk 0:00:53]}  Rxd3 {[%clk 0:00:17]} 37. Bc2 {[%clk 0:00:43]}  Rd4 {[%clk 0:00:17]} 38. Kg1 {[%clk 0:00:39]}  Bxc4 {[%clk 0:00:14]} 39. Qe3 {[%clk 0:00:38]}  Qxe3+ {[%clk 0:00:10]} 40. Nxe3 {[%clk 0:00:38]}  Be6 {[%clk 0:00:11]} 41. Rbc1 {[%clk 0:00:31]}  c4 {[%clk 0:00:10]} 42. Kf2 {[%clk 0:00:30]}  Rb8 {[%clk 0:00:10]} 43. Rb1 {[%clk 0:00:29]}  Nxe4+ {[%clk 0:00:09]} 44. Bxe4 {[%clk 0:00:29]}  Rxe4 {[%clk 0:00:10]} 45. Rdc1 {[%clk 0:00:30]}  Rd4 {[%clk 0:00:11]} 46. Nf1 {[%clk 0:00:25]}  Rb3 {[%clk 0:00:10]} 47. Rc3 {[%clk 0:00:25]}  Rd3 {[%clk 0:00:10]} 48. Rxd3 {[%clk 0:00:23]}  Rxd3 {[%clk 0:00:08]} 49. Re1 {[%clk 0:00:23]}  f6 {[%clk 0:00:07]} 50. Ra1 {[%clk 0:00:21]}  Rb3 {[%clk 0:00:07]} 51. Ra2 {[%clk 0:00:19]}  Bd5 {[%clk 0:00:06]} 52. Nd2 {[%clk 0:00:20]}  Rd3 {[%clk 0:00:06]} 53. Nf1 {[%clk 0:00:20]}  Kf7 {[%clk 0:00:05]} 54. Ne3 {[%clk 0:00:20]}  Ke6 {[%clk 0:00:05]} 55. Ke2 {[%clk 0:00:18]}  Rb3 {[%clk 0:00:06]} 56. Kd2 {[%clk 0:00:16]}  f5 {[%clk 0:00:06]} 57. Ke2 {[%clk 0:00:09]}  f4 {[%clk 0:00:05]} 58. gxf4 {[%clk 0:00:09]}  exf4 {[%clk 0:00:06]} 59. Nc2 {[%clk 0:00:10]}  Ke5 {[%clk 0:00:06]} 60. Kd2 {[%clk 0:00:09]}  Rd3+ {[%clk 0:00:06]} 61. Ke1 {[%clk 0:00:09]}  Rh3 {[%clk 0:00:04]} 62. Ra8 {[%clk 0:00:10]}  Rxh4 {[%clk 0:00:04]} 63. Re8+ {[%clk 0:00:10]}  Kd6 {[%clk 0:00:04]} 64. Rf8 {[%clk 0:00:10]}  g5 {[%clk 0:00:04]} 65. Nd4 {[%clk 0:00:09]}  Kc5 {[%clk 0:00:04]} 66. Ne2 {[%clk 0:00:06]}  Rh2 {[%clk 0:00:03]} 67. Rf5 {[%clk 0:00:06]}  f3 {[%clk 0:00:03]} 68. Nc3 {[%clk 0:00:06]}  g4 {[%clk 0:00:03]} 69. Ne4+ {[%clk 0:00:07]}  Kd4 {[%clk 0:00:03]} 70. Nd2 {[%clk 0:00:04]}  Re2+ {[%clk 0:00:03]} 71. Kd1 {[%clk 0:00:05]}  Ke3 {[%clk 0:00:04]} 72. Nf1+ {[%clk 0:00:05]}  Kf2 {[%clk 0:00:04]} 73. Nd2 {[%clk 0:00:05]}  Rxd2+ {[%clk 0:00:03]} 74. Kxd2 {[%clk 0:00:05]}  g3 {[%clk 0:00:04]} 0-1


[Site "https://www.chess.com"]

[Event "Titled Tuesday Blitz May 2 Early 2023"]
[White "Durarbayli, Vasif"]
[Black "Tanenbaum, Zachary"]
[WhiteFideId "13402935"]
[BlackFideId "2060850"]
[WhiteElo "2551"]
[BlackElo "2175"]
[Result "1-0"]
[Round "09"]
[TimeControl "180+2"]
[Date "2023.05.02"]
[WhiteClock "0:00:18"]
[BlackClock "0:00:06"]

1. e4 {[%clk 0:03:00]}  e5 {[%clk 0:03:00]} 2. Nc3 {[%clk 0:02:58]}  Nc6 {[%clk 0:03:00]} 3. f4 {[%clk 0:02:58]}  exf4 {[%clk 0:03:00]} 4. d4 {[%clk 0:02:58]}  Qh4+ {[%clk 0:02:59]} 5. Ke2 {[%clk 0:02:58]}  d5 {[%clk 0:02:54]} 6. Nf3 {[%clk 0:02:56]}  Bg4 {[%clk 0:02:50]} 7. exd5 {[%clk 0:02:45]}  Nce7 {[%clk 0:02:28]} 8. Bxf4 {[%clk 0:02:40]}  Bxf3+ {[%clk 0:02:15]} 9. Kxf3 {[%clk 0:02:40]}  O-O-O {[%clk 0:02:07]} 10. g3 {[%clk 0:02:33]}  Qf6 {[%clk 0:01:59]} 11. Bh3+ {[%clk 0:02:29]}  Kb8 {[%clk 0:01:59]} 12. Kg2 {[%clk 0:02:26]}  Nxd5 {[%clk 0:01:56]} 13. Nxd5 {[%clk 0:02:09]}  Rxd5 {[%clk 0:01:57]} 14. Re1 {[%clk 0:02:09]}  Qc6 {[%clk 0:01:44]} 15. Kg1 {[%clk 0:01:41]}  Rd8 {[%clk 0:01:06]} 16. Bg2 {[%clk 0:01:11]}  Qb6 {[%clk 0:01:06]} 17. Kh1 {[%clk 0:00:53]}  Ne7 {[%clk 0:01:01]} 18. a4 {[%clk 0:00:45]}  a6 {[%clk 0:00:52]} 19. a5 {[%clk 0:00:41]}  Qxd4 {[%clk 0:00:21]} 20. Qf3 {[%clk 0:00:40]}  Nc6 {[%clk 0:00:21]} 21. Rad1 {[%clk 0:00:36]}  Qf6 {[%clk 0:00:19]} 22. Rxd8+ {[%clk 0:00:21]}  Qxd8 {[%clk 0:00:20]} 23. Qb3 {[%clk 0:00:20]}  Nxa5 {[%clk 0:00:16]} 24. Qxf7 {[%clk 0:00:18]}  Bb4 {[%clk 0:00:14]} 25. c3 {[%clk 0:00:16]}  Bd6 {[%clk 0:00:14]} 26. b4 {[%clk 0:00:13]}  Rf8 {[%clk 0:00:11]} 27. Qxg7 {[%clk 0:00:12]}  Bxf4 {[%clk 0:00:11]} 28. bxa5 {[%clk 0:00:11]}  Bd6 {[%clk 0:00:09]} 29. Rb1 {[%clk 0:00:10]}  Qe8 {[%clk 0:00:02]} 30. Qg4 {[%clk 0:00:07]}  c6 {[%clk 0:00:01]} 31. Qc4 {[%clk 0:00:04]}  Rf7 {[%clk 0:00:01]} 32. Qxa6 {[%clk 0:00:04]}  Qe1+ {[%clk 0:00:01]} 33. Rxe1 {[%clk 0:00:04]}  bxa6 {[%clk 0:00:02]} 34. Bxc6 {[%clk 0:00:04]}  Kc7 {[%clk 0:00:02]} 35. Bd5 {[%clk 0:00:04]}  Re7 {[%clk 0:00:02]} 36. Rb1 {[%clk 0:00:03]}  Re5 {[%clk 0:00:02]} 37. c4 {[%clk 0:00:03]}  Re1+ {[%clk 0:00:02]} 38. Rxe1 {[%clk 0:00:03]}  Bb4 {[%clk 0:00:02]} 39. Rf1 {[%clk 0:00:03]}  Bxa5 {[%clk 0:00:02]} 40. Rf7+ {[%clk 0:00:04]}  Kb6 {[%clk 0:00:03]} 41. Rxh7 {[%clk 0:00:05]}  Bb4 {[%clk 0:00:03]} 42. Rh6+ {[%clk 0:00:05]}  Ka5 {[%clk 0:00:02]} 43. Bb7 {[%clk 0:00:05]}  Ka4 {[%clk 0:00:02]} 44. Rxa6+ {[%clk 0:00:06]}  Kb3 {[%clk 0:00:03]} 45. Bd5 {[%clk 0:00:06]}  Kc3 {[%clk 0:00:03]} 46. Re6 {[%clk 0:00:07]}  Kd4 {[%clk 0:00:04]} 47. Kg2 {[%clk 0:00:08]}  Kc5 {[%clk 0:00:04]} 48. h4 {[%clk 0:00:09]}  Bc3 {[%clk 0:00:05]} 49. h5 {[%clk 0:00:10]}  Kb4 {[%clk 0:00:05]} 50. g4 {[%clk 0:00:11]}  Kb3 {[%clk 0:00:05]} 51. Kf3 {[%clk 0:00:12]}  Kc2 {[%clk 0:00:05]} 52. Re4 {[%clk 0:00:13]}  Kd3 {[%clk 0:00:05]} 53. Kf4 {[%clk 0:00:13]}  Bd2+ {[%clk 0:00:06]} 54. Kf5 {[%clk 0:00:14]}  Kc3 {[%clk 0:00:06]} 55. g5 {[%clk 0:00:15]}  Kc2 {[%clk 0:00:06]} 56. g6 {[%clk 0:00:16]}  Bc3 {[%clk 0:00:06]} 57. Re2+ {[%clk 0:00:16]}  Kd3 {[%clk 0:00:06]} 58. Rg2 {[%clk 0:00:17]}  Bd4 {[%clk 0:00:06]} 59. h6 {[%clk 0:00:18]}  Kc3 {[%clk 0:00:06]} 60. g7 {[%clk 0:00:18]} 1-0


[Site "https://www.chess.com"]

[Event "Titled Tuesday Blitz May 2 Early 2023"]
[White "Golichenko, Ilija"]
[Black "Asis Gargatagli, Hipolito"]
[WhiteFideId "14117223"]
[BlackFideId "2260735"]
[WhiteElo "2339"]
[BlackElo "2557"]
[Result "0-1"]
[Round "09"]
[TimeControl "180+2"]
[Date "2023.05.02"]
[WhiteClock "0:00:02"]
[BlackClock "0:00:29"]

1. d4 {[%clk 0:03:00]}  f5 {[%clk 0:02:59]} 2. g3 {[%clk 0:03:00]}  Nf6 {[%clk 0:02:59]} 3. Bg2 {[%clk 0:03:01]}  g6 {[%clk 0:02:59]} 4. Nf3 {[%clk 0:03:01]}  Bg7 {[%clk 0:03:00]} 5. O-O {[%clk 0:03:02]}  O-O {[%clk 0:03:00]} 6. c4 {[%clk 0:03:02]}  d6 {[%clk 0:03:00]} 7. b4 {[%clk 0:03:02]}  e5 {[%clk 0:03:00]} 8. dxe5 {[%clk 0:02:54]}  dxe5 {[%clk 0:03:01]} 9. Bb2 {[%clk 0:02:54]}  e4 {[%clk 0:03:00]} 10. Nd4 {[%clk 0:02:35]}  Qe7 {[%clk 0:02:55]} 11. Qb3 {[%clk 0:02:32]}  Nc6 {[%clk 0:02:53]} 12. c5+ {[%clk 0:02:14]}  Kh8 {[%clk 0:02:52]} 13. Nxc6 {[%clk 0:02:04]}  bxc6 {[%clk 0:02:53]} 14. e3 {[%clk 0:01:54]}  a5 {[%clk 0:02:51]} 15. a3 {[%clk 0:01:52]}  Ba6 {[%clk 0:02:51]} 16. Rd1 {[%clk 0:01:51]}  Rab8 {[%clk 0:02:51]} 17. Bd4 {[%clk 0:01:42]}  Ng4 {[%clk 0:02:34]} 18. Bxg7+ {[%clk 0:01:39]}  Qxg7 {[%clk 0:02:34]} 19. Nc3 {[%clk 0:01:31]}  Bd3 {[%clk 0:02:28]} 20. Ra2 {[%clk 0:01:03]}  h5 {[%clk 0:02:27]} 21. Ne2 {[%clk 0:00:55]}  Ne5 {[%clk 0:02:12]} 22. Nf4 {[%clk 0:00:53]}  Bc4 {[%clk 0:02:12]} 23. Qb2 {[%clk 0:00:41]}  Bxa2 {[%clk 0:02:12]} 24. Qxa2 {[%clk 0:00:42]}  axb4 {[%clk 0:02:08]} 25. axb4 {[%clk 0:00:39]}  Rfd8 {[%clk 0:01:49]} 26. Ra1 {[%clk 0:00:33]}  Ra8 {[%clk 0:01:28]} 27. Qxa8 {[%clk 0:00:28]}  Rxa8 {[%clk 0:01:29]} 28. Rxa8+ {[%clk 0:00:28]}  Kh7 {[%clk 0:01:30]} 29. h4 {[%clk 0:00:26]}  Qd7 {[%clk 0:01:24]} 30. Ra7 {[%clk 0:00:22]}  Kh6 {[%clk 0:01:09]} 31. Bf1 {[%clk 0:00:20]}  Qd2 {[%clk 0:01:04]} 32. Be2 {[%clk 0:00:17]}  Nd3 {[%clk 0:00:53]} 33. Nxd3 {[%clk 0:00:08]}  exd3 {[%clk 0:00:54]} 34. Bf3 {[%clk 0:00:08]}  Qe1+ {[%clk 0:00:41]} 35. Kg2 {[%clk 0:00:08]}  d2 {[%clk 0:00:41]} 36. Rxc7 {[%clk 0:00:08]}  d1=Q {[%clk 0:00:41]} 37. Bxd1 {[%clk 0:00:08]}  Qxd1 {[%clk 0:00:42]} 38. Re7 {[%clk 0:00:04]}  Qd5+ {[%clk 0:00:42]} 39. Kg1 {[%clk 0:00:03]}  Qd1+ {[%clk 0:00:41]} 40. Kh2 {[%clk 0:00:03]}  Qd2 {[%clk 0:00:40]} 41. Kg1 {[%clk 0:00:02]}  Qxb4 {[%clk 0:00:40]} 42. Re5 {[%clk 0:00:03]}  Qb1+ {[%clk 0:00:38]} 43. Kg2 {[%clk 0:00:02]}  Qb5 {[%clk 0:00:37]} 44. f4 {[%clk 0:00:02]}  Qe2+ {[%clk 0:00:35]} 45. Kg1 {[%clk 0:00:01]}  Kg7 {[%clk 0:00:35]} 46. Kh1 {[%clk 0:00:01]}  Qf2 {[%clk 0:00:34]} 47. Re6 {[%clk 0:00:01]}  Qxg3 {[%clk 0:00:34]} 48. Re7+ {[%clk 0:00:01]}  Kf6 {[%clk 0:00:30]} 49. Re5 {[%clk 0:00:02]}  Qh3+ {[%clk 0:00:29]} 0-1


[Site "https://www.chess.com"]

[Event "Titled Tuesday Blitz May 2 Early 2023"]
[White "Livaic, Leon"]
[Black "Rakotomaharo, Fy Antenaina"]
[WhiteFideId "14531534"]
[BlackFideId "13100050"]
[WhiteElo "2509"]
[BlackElo "2427"]
[Result "0-1"]
[Round "09"]
[TimeControl "180+2"]
[Date "2023.05.02"]
[WhiteClock "0:00:13"]
[BlackClock "0:00:17"]

1. d4 {[%clk 0:02:59]}  Nf6 {[%clk 0:03:00]} 2. c4 {[%clk 0:03:00]}  e6 {[%clk 0:02:59]} 3. Nf3 {[%clk 0:03:00]}  d5 {[%clk 0:02:59]} 4. Nc3 {[%clk 0:03:01]}  dxc4 {[%clk 0:02:58]} 5. e4 {[%clk 0:03:00]}  b5 {[%clk 0:02:59]} 6. Nxb5 {[%clk 0:02:57]}  Nxe4 {[%clk 0:02:58]} 7. Bxc4 {[%clk 0:02:55]}  Bb4+ {[%clk 0:02:57]} 8. Kf1 {[%clk 0:02:49]}  O-O {[%clk 0:02:57]} 9. Bd3 {[%clk 0:02:43]}  f5 {[%clk 0:02:45]} 10. Qb3 {[%clk 0:02:30]}  a5 {[%clk 0:02:33]} 11. Bf4 {[%clk 0:02:22]}  Bd6 {[%clk 0:02:06]} 12. Nxd6 {[%clk 0:02:19]}  cxd6 {[%clk 0:02:06]} 13. Nd2 {[%clk 0:01:58]}  Nc6 {[%clk 0:01:34]} 14. d5 {[%clk 0:01:01]}  Nd4 {[%clk 0:01:31]} 15. Qa4 {[%clk 0:01:02]}  e5 {[%clk 0:01:29]} 16. Be3 {[%clk 0:01:02]}  Nxd2+ {[%clk 0:01:14]} 17. Bxd2 {[%clk 0:01:02]}  Bd7 {[%clk 0:01:12]} 18. Qd1 {[%clk 0:00:58]}  e4 {[%clk 0:01:06]} 19. Bc4 {[%clk 0:00:56]}  f4 {[%clk 0:00:32]} 20. Bxf4 {[%clk 0:00:27]}  Rxf4 {[%clk 0:00:33]} 21. Qxd4 {[%clk 0:00:28]}  Qg5 {[%clk 0:00:28]} 22. h4 {[%clk 0:00:24]}  Qf5 {[%clk 0:00:22]} 23. g3 {[%clk 0:00:19]}  Rf3 {[%clk 0:00:19]} 24. Be2 {[%clk 0:00:19]}  Rxg3 {[%clk 0:00:20]} 25. Rg1 {[%clk 0:00:14]}  Qh3+ {[%clk 0:00:19]} 26. Rg2 {[%clk 0:00:13]}  Qh1+ {[%clk 0:00:17]} 0-1


[Site "https://www.chess.com"]

[Event "Titled Tuesday Blitz May 2 Early 2023"]
[White "Rom, Jasper"]
[Black "Indjic, Aleksandar"]
[WhiteFideId "2023733"]
[BlackFideId "911925"]
[WhiteElo "2233"]
[BlackElo "2614"]
[Result "0-1"]
[Round "09"]
[TimeControl "180+2"]
[Date "2023.05.02"]
[WhiteClock "0:00:04"]
[BlackClock "0:01:55"]

1. e4 {[%clk 0:02:51]}  e5 {[%clk 0:03:00]} 2. Nf3 {[%clk 0:02:50]}  Nc6 {[%clk 0:03:01]} 3. Bb5 {[%clk 0:02:51]}  Nf6 {[%clk 0:03:01]} 4. d3 {[%clk 0:02:50]}  d6 {[%clk 0:03:00]} 5. O-O {[%clk 0:02:49]}  Bd7 {[%clk 0:03:01]} 6. h3 {[%clk 0:02:49]}  g6 {[%clk 0:03:01]} 7. c3 {[%clk 0:02:49]}  Bg7 {[%clk 0:03:01]} 8. Re1 {[%clk 0:02:48]}  O-O {[%clk 0:03:02]} 9. Nbd2 {[%clk 0:02:48]}  a6 {[%clk 0:03:01]} 10. Ba4 {[%clk 0:02:47]}  h6 {[%clk 0:03:02]} 11. Nf1 {[%clk 0:02:46]}  Nh5 {[%clk 0:03:02]} 12. Bb3 {[%clk 0:02:34]}  Kh8 {[%clk 0:03:00]} 13. d4 {[%clk 0:02:34]}  Qe7 {[%clk 0:02:58]} 14. Ne3 {[%clk 0:02:04]}  Rae8 {[%clk 0:02:57]} 15. Ng4 {[%clk 0:01:54]}  Kh7 {[%clk 0:02:55]} 16. dxe5 {[%clk 0:01:49]}  Nxe5 {[%clk 0:02:45]} 17. Ngxe5 {[%clk 0:01:41]}  dxe5 {[%clk 0:02:45]} 18. Bd5 {[%clk 0:01:41]}  Rd8 {[%clk 0:02:43]} 19. Qe2 {[%clk 0:01:33]}  Bc8 {[%clk 0:02:41]} 20. Be3 {[%clk 0:01:29]}  Nf6 {[%clk 0:02:34]} 21. Rad1 {[%clk 0:01:09]}  Nxd5 {[%clk 0:02:33]} 22. exd5 {[%clk 0:00:55]}  e4 {[%clk 0:02:33]} 23. Nh2 {[%clk 0:00:51]}  f5 {[%clk 0:02:33]} 24. c4 {[%clk 0:00:37]}  Rfe8 {[%clk 0:02:13]} 25. Bd4 {[%clk 0:00:36]}  Bxd4 {[%clk 0:02:13]} 26. Rxd4 {[%clk 0:00:35]}  c5 {[%clk 0:02:14]} 27. Rdd1 {[%clk 0:00:32]}  f4 {[%clk 0:02:14]} 28. Ng4 {[%clk 0:00:22]}  Bf5 {[%clk 0:02:11]} 29. Qd2 {[%clk 0:00:20]}  Qd6 {[%clk 0:02:12]} 30. Qc3 {[%clk 0:00:18]}  Bxg4 {[%clk 0:02:12]} 31. hxg4 {[%clk 0:00:18]}  Re5 {[%clk 0:02:11]} 32. Re2 {[%clk 0:00:15]}  Rde8 {[%clk 0:02:10]} 33. Rde1 {[%clk 0:00:15]}  Qd7 {[%clk 0:02:06]} 34. f3 {[%clk 0:00:15]}  e3 {[%clk 0:02:06]} 35. Rd1 {[%clk 0:00:15]}  Qd6 {[%clk 0:02:06]} 36. Qd3 {[%clk 0:00:14]}  h5 {[%clk 0:02:05]} 37. gxh5 {[%clk 0:00:13]}  Rxh5 {[%clk 0:02:06]} 38. g4 {[%clk 0:00:04]}  fxg3 {[%clk 0:01:59]} 39. Rxe3 {[%clk 0:00:04]}  g2 {[%clk 0:01:55]} 40. Rxe8 {[%clk 0:00:04]}  Qh2+ {[%clk 0:01:55]} 0-1


[Site "https://www.chess.com"]